Cogmind - Beta 17.1 @@@ ROGUE MODE // 2026.09.19 @ 22:47:48 Player: Ammie Result: Destroyed by as-00568 with Assembled F-torch Performance ------------- Evolutions (0) 0 Regions Visited (2) 400 Robots Destroyed (22) 110 Value Destroyed (530) 530 Prototype IDs (0) 0 Alien Tech Used (0) 0 Bonus (0) 0 TOTAL SCORE: 1040 Bonus ------- None Cogmind --------- Core Integrity 0/250 Matter 300/300 Energy 153/160 System Corruption 0% Temperature Warm (130) Movement Core (900) Ox17 Location -10/Mines Parts ------- > --- POWER (1) -------- Light Nuclear Core > --- PROPULSION (2) --- (None) > --- UTILITY (2) ------ Improved Heat Sink High-capacity Storage Unit > --- WEAPON (2) ------- Particle Gun Particle Gun > --- INVENTORY (20) --- Ion Engine Ion Engine ECM Suite Hacking Suite Assault Rifle Light Assault Rifle Light Assault Rifle Datajack Peak State ------------ > --- POWER ------------ Light Nuclear Core > --- PROPULSION ------- Light Treads Light Treads > --- UTILITY ---------- Improved Heat Sink High-capacity Storage Unit > --- WEAPON ----------- Particle Gun Particle Gun > --- INVENTORY -------- Ion Engine Ion Engine Light Treads ECM Suite Hacking Suite Assault Rifle Light Assault Rifle Light Assault Rifle Datajack [Rating: 14] Favorites ----------- Power Ion Engine Engine Ion Engine Power Core Light Nuclear Core Propulsion Light Treads Treads Light Treads Utility High-capacity Storage Unit Device Improved Heat Sink Storage High-capacity Storage Unit Weapon Particle Gun Energy Gun Particle Gun Ballistic Gun Light Assault Rifle Build | -11 -10 -10 ------- Run | Yrd Mat Min Slots Evolved . | . . . Power . | . . . Propulsion . | . . . Utility . | . . . Weapon . | . . . Parts Attached 19 | 6 10 3 Power 4 | 1 2 1 Engine 3 | 1 2 . Core 1 | . . 1 Reactor . | . . . Propulsion 4 | 2 2 . Treads 4 | 2 2 . Leg . | . . . Wheel . | . . . Hover . | . . . Flight . | . . . Utility 5 | 1 3 1 Device 3 | . 2 1 Storage 2 | 1 1 . Processor . | . . . Hackware . | . . . Protection . | . . . Artifact . | . . . Weapon 6 | 2 3 1 Energy Gun 4 | 2 1 1 Energy Cannon . | . . . Ballistic Gun 2 | . 2 . Ballistic Cannon . | . . . Launcher . | . . . Special Weapon . | . . . Impact Weapon . | . . . Slashing Weapon . | . . . Piercing Weapon . | . . . Special Melee Weapon . | . . . Unidentified Prototypes . | . . . Parts Lost 8 | . 5 3 Power 1 | . 1 . Propulsion 4 | . 1 3 Utility 2 | . 2 . Weapon 1 | . 1 . Highest Loss Streak 2 | . 2 2 To Critical Strikes . | . . . Average Backups 4 | . 2 8 Power 1 | . . 1 Propulsion . | . . . Utility 1 | . 1 2 Weapon 1 | . . 2 Tool/Special . | . . . Unused Backups 4 | . . 4 Power . | . . . Propulsion . | . . . Utility 2 | . . 2 Weapon 1 | . . 1 Tool/Special 1 | . . 1 Average Slot Usage (%) 92 | . 90 97 Engine 9 | . 13 . Core 4 | . . 13 Treads 27 | . 27 25 Device 9 | . 7 13 Storage 14 | . 14 14 Energy Gun 22 | . 20 26 Ballistic Gun 4 | . 5 1 Peak Build Rating 14 | 6 8 14 Average Rating 9 | 4 7 13 On Entrance 4 | . 6 7 Avg Prop Armor Cover (%) . | . . . Naked Turns . | . . . Heaviest Build 52 | 14 52 52 Greatest Support 40 | 40 40 40 Greatest Overweight (x) 17 | 3 1 17 Average Overweight (x) . | . . 1 Largest Inventory Capacity 20 | 8 20 20 Average Capacity 18 | 7 18 20 Most Carried 9 | 1 7 9 Average Carried 4 | . 2 8 Final Capacity 20 | 8 20 20 Final Carried 8 | 1 7 8 Class Distribution -------------------- 69% | Mutant 30% | Scavenger-Mutant Dominant Class ---------------- Mutant | -10/Materials Scavenger-Mutant | -10/Mines Resources | -11 -10 -10 ----------- Run | Yrd Mat Min Matter Collected 469 | 260 139 70 Remotely . | . . . Salvage Created 794 | . 648 146 Parts 43 | . 33 10 Haulers Intercepted 2 | . 2 . Recyclers Shooed . | . . . Parts Field Recycled . | . . . Retrieved Matter . | . . . Parts Self-Destructed . | . . . Prevented . | . . . Parts Restored . | . . . Kills | -11 -10 -10 ------- Run | Yrd Mat Min Combat Hostiles Destroyed 19 | . 14 5 Guns 18 | . 13 5 Classes Destroyed 7 | . 6 1 Worker 1 | . 1 . Hauler 2 | . 2 . Recycler 1 | . 1 . Operator 1 | . 1 . Swarmer 6 | . 6 . Grunt 11 | . 8 3 Assembled 2 | . . 2 Best Kill Streak 3 | . 3 2 Combat Bots Only 3 | . 3 2 Max Kills in Single Turn 1 | . 1 1 Gunslinging . | . . . Exploded . | . . . Melee . | . . . Uniques/NPCs Destroyed . | . . . Combat | -11 -10 -10 -------- Run | Yrd Mat Min Hostile Shots Fired 182 | . 132 50 Missed 49 | . 40 9 Hits 133 | . 92 41 Projectile 133 | . 92 41 Critical Strikes 2 | . 2 . Part Disruptions 1 | . . 1 Damage Taken 1464 | . 967 497 Core 258 | . 143 115 Absorbed by Shields . | . . . Core Remaining (%) 100 | 100 . . Volleys Fired 110 | . 85 25 Largest 2 | . 2 2 Hottest 130 | . 115 130 Shots Fired 179 | . 132 47 Gun 179 | . 132 47 Cannon . | . . . Launcher . | . . . Special . | . . . Kinetic 39 | . 34 5 Thermal 140 | . 98 42 Explosive . | . . . Electromagnetic . | . . . Robot Hit Streak 10 | . 10 3 Robot Miss Streak 7 | . 7 1 Penetration Max . | . . . Secondary Targets 2 | . 1 1 Max Gunslinging Chain 1 | . 1 1 Shots Hit Robots 89 | . 71 18 Core Hits 44 | . 33 11 Critical Kills . | . . . Critical Parts Destroyed . | . . . Critical Strikes 4 | . 4 . Burn 4 | . 4 . Melee Attacks . | . . . Impact . | . . . Slashing . | . . . Piercing . | . . . Sneak Attacks . | . . . Combat Hostiles . | . . . Follow-up Attacks . | . . . Damage Inflicted 1176 | . 916 260 Guns 1176 | . 916 260 Cannons . | . . . Explosions . | . . . Melee . | . . . Ramming . | . . . Kinetic 172 | . 127 45 Thermal 1004 | . 789 215 Explosive . | . . . Electromagnetic . | . . . Impact . | . . . Slashing . | . . . Piercing . | . . . Highest Corruption . | . . . Average Corruption . | . . . Corruption Purged . | . . . Corruption Blocked . | . . . Overload Shots . | . . . Overflow Damage . | . . . Projectiles . | . . . Explosions . | . . . Melee . | . . . Knockbacks . | . . . Impact . | . . . Kinetic . | . . . Secondary . | . . . Self-Inflicted Damage . | . . . Shots . | . . . Rammed . | . . . Targets Rammed . | . . . Kicked . | . . . Crushed . | . . . Highest Temperature 402 | . 402 231 Average Temperature 140 | . 153 96 Received Heat Transfer 618 | . 348 270 Effects 5 | . 3 2 Energy Bleed 1 | . 1 . Interference 3 | . 1 2 Short Circuit 1 | . 1 . Siege Activations . | . . . Martial Activations . | . . . Shielding Activations . | . . . Robots Disrupted . | . . . Combat Hostiles . | . . . Robots Corrupted . | . . . Combat Hostiles . | . . . Parts Fried . | . . . Impact Corruptions . | . . . Robots Melted 1 | . 1 . Combat Hostiles 1 | . 1 . Parts Melted 3 | . 3 . Heat Transferred 2960 | . 2442 518 Parts Sabotaged . | . . . Parts Stolen . | . . . Parts Stripped . | . . . Power Chain Reactions . | . . . Alert | -11 -10 -10 ------- Run | Yrd Mat Min Maximum Alert Level . | . . . Low Security (%) 100 | 100 100 100 Level 1 . | . . . Level 2 . | . . . Level 3 . | . . . Level 4 . | . . . Level 5 . | . . . High Security . | . . . Max Security . | . . . Peak Influence 81 | . 81 50 Initial . | . . . Average 19 | . 27 5 Influence Increases 527 | . 442 85 Destroy 0b10 Robot/C 340 | . 280 60 Destroy 0b10 Robot/NC 25 | . 25 . Destroy Leader 74 | . 64 10 Successful Hack 12 | . 12 . Disable Machine 45 | . 45 . Destroy Structure 1 | . 1 . Partial Spotted 15 | . . 15 Lose Combat Pursuer 15 | . 15 . Influence Decreases 527 | . 442 85 Time Decay 484 | . 402 82 Lost Part 43 | . 40 3 Squads Dispatched 3 | . 3 . Investigation 1 | . 1 . Extermination . | . . . Reinforcement 2 | . 2 . Assault . | . . . Garrison . | . . . Intercept . | . . . Searches Triggered . | . . . Construction Impeded . | . . . Haulers Reinforced . | . . . Active Scanning Responses . | . . . Cargo Convoy Interrupts . | . . . Stealth | -11 -10 -10 --------- Run | Yrd Mat Min Distress Signals 3 | . 3 . Communications Jammed . | . . . Distress Signals . | . . . Times Spotted 39 | . 33 6 Peak Tracking Total 6 | . 6 3 Tactical Retreats 1 | . 1 . Traps | -11 -10 -10 ------- Run | Yrd Mat Min Traps Triggered . | . . . Indirectly . | . . . Trap Hack Attempts . | . . . Triggered . | . . . Disarmed . | . . . Reprogrammed . | . . . Reused . | . . . Traps Extracted . | . . . Installed . | . . . Triggered . | . . . Machines | -11 -10 -10 ---------- Run | Yrd Mat Min Machines Disabled 4 | . 4 . Max in Single Turn 1 | . 1 . Machines Repaired . | . . . Machines Dismantled . | . . . Machines Sabotaged . | . . . Overloaded Fab Kills . | . . . Hacking | -11 -10 -10 --------- Run | Yrd Mat Min Machines Accessed 4 | . 4 . Terminals 4 | . 4 . Fabricators . | . . . Repair Stations . | . . . Recycling Units . | . . . Scanalyzers . | . . . Garrison Access . | . . . Total Hacks 14 | . 14 . Successful 3 | . 3 . Failed 11 | . 11 . Catastrophic . | . . . Database Lockouts . | . . . Manual 4 | . 4 . Terminals 14 | . 14 . Fabricators . | . . . Repair Stations . | . . . Recycling Units . | . . . Scanalyzers . | . . . Garrison Access . | . . . Terminal Hacks 3 | . 3 . Branch Access Points 1 | . 1 . Locate Traps 1 | . 1 . Zone Layout 1 | . 1 . Fabricator Hacks . | . . . Repair Station Hacks . | . . . Recycling Unit Hacks . | . . . Scanalyzer . | . . . Garrison Access Hacks . | . . . Unauthorized Hacks . | . . . Terminals . | . . . Fabricators . | . . . Repair Stations . | . . . Recycling Units . | . . . Scanalyzers . | . . . Garrison Access . | . . . Data Cores Recovered . | . . . Used . | . . . Hacking Detections 4 | . 4 . Full Trace Events 2 | . 2 . Feedback Events . | . . . Feedback Blocked . | . . . Robot Schematics Acquired . | . . . Robots Built . | . . . Authchips . | . . . Time . | . . . Total Robot Build Rating . | . . . Part Schematics Acquired . | . . . Parts Built . | . . . Authchips . | . . . Time . | . . . Total Part Build Rating . | . . . Part Studies Acquired . | . . . Parts Repaired . | . . . Time . | . . . Parts Recycled . | . . . Recycled Matter . | . . . Retrieved Matter . | . . . Retrieved Components . | . . . Parts Scanalyzed . | . . . Part Schematics Acquired . | . . . Parts Damaged . | . . . Bothacking | -11 -10 -10 ------------ Run | Yrd Mat Min Used RIF Installer . | . . . Robots Hacked . | . . . Non-combat . | . . . Combat . | . . . Robot Hacks Applied . | . . . Relay Couplers Released . | . . . Fabnet Peak Effective % . | . . . Robots Rewired . | . . . Allies Hacked . | . . . Hacks Repelled . | . . . Allies | -11 -10 -10 -------- Run | Yrd Mat Min Total Allies . | . . . Largest Group . | . . . Highest-Rated Group . | . . . Highest-Rated Ally . | . . . Total Orders . | . . . Ally Attacks . | . . . Total Damage . | . . . Kills . | . . . Allies Corrupted . | . . . Allies Melted . | . . . Intel | -11 -10 -10 ------- Run | Yrd Mat Min Active Infowar (turns) 443 | . 443 . Terrain 443 | . 443 . Robot Analysis Total . | . . . Derelict Logs Recovered . | . . . Drone Launches . | . . . Drone Recoveries . | . . . Exploration | -11 -10 -10 ------------- Run | Yrd Mat Min Turns Passed 1957 | 84 1272 601 Spaces Moved 614 | 48 455 111 Core 13 | 11 . 2 Treads 601 | 37 455 109 Legs . | . . . Wheels . | . . . Hover . | . . . Flight . | . . . Fastest Speed 50 | 50 160 240 Average Speed 227 | 155 226 259 Slowest Speed 900 | 200 240 900 Overloaded Moves . | . . . Propulsion Burnouts . | . . . Robots Hopped . | . . . Potential Cave-ins . | . . . Cave-ins Triggered . | . . . Exploration Rate (%) 35 | 3 85 18 Regions Visited 2 Branch Regions 1 Pre-discovered Areas . | . . . Known Exits Taken 1 | . 1 . Unknown Exits Taken 1 | 1 . . Scrap Searched . | . . . Spaces Dug . | . . . Terrain Destroyed . | . . . Melee . | . . . Projectile . | . . . AOE . | . . . Terrain Rammed . | . . . Walls Destroyed . | . . . Machines Disabled . | . . . Actions | -11 -10 -10 --------- Run | Yrd Mat Min Total 998 | 54 567 377 Wait 244 | . 8 236 Move 612 | 47 454 111 Hop . | . . . Pick Up 6 | 1 5 . Fast Attach 11 | 6 4 1 Attach 4 | . 3 1 Detach . | . . . Swap 9 | . 6 3 Drop 2 | . 2 . Fire 110 | . 85 25 Melee . | . . . Ram . | . . . Kick . | . . . Crush . | . . . Escape Stasis . | . . . Rewire . | . . . Trap . | . . . Miscellaneous . | . . . Route ------- -11/Scrapyard -10/Materials (discovered 5 exits: [*Mat x2] / *Min x2 / [*Sub]) -10/Mines History --------- Turn | Location | Event 17 | -11/Scrapyard | Discovered new exit (range 16) 85 | -11/Scrapyard | Entered Materials 191 | -10/Materials | Discovered new exit (range 15) 309 | -10/Materials | Build established: Mutant 520 | -10/Materials | Discovered new exit (range 6) 651 | -10/Materials | Discovered new exit (range 12) 947 | -10/Materials | Discovered new exit (range 9) 1310 | -10/Materials | Discovered new exit (range 7) 1322 | -10/Materials | Identified exit to Mines 1342 | -10/Materials | Core integrity fell below 50% 1357 | -10/Materials | Entered Mines 1580 | -10/Mines | Excavation squad dispatched 1580 | -10/Mines | A large section of the Mines collapsed 1659 | -10/Mines | Build established: Scavenger-Mutant 1894 | -10/Mines | Core integrity fell below 20% 1958 | -10/Mines | Destroyed by as-00568 with Assembled F-torch Last Messages --------------- 01393_ Acquired 37 matter. 01478_ K-01 Serf collects debris. 01580_ K-01 Serf crushed by falling debris. 01580_ K-01 Serf destroyed. 01580_ ALERT: Suspicious cave-in, suspected derelict activity in mines. Dispatching escorted excavation squad. 01603_ Overheating: System interference. 01603_ Particle Gun temporarily disabled. 01814_ T-07 Excavator is excavating. 01817_ Lgt. Treads destroyed. 01818_ T-07 Excavator is excavating. 01820_ G-34 Mercenary destroyed. 01822_ T-07 Excavator is excavating. 01827_ Acquired 33 matter. 01830_ T-07 Excavator is excavating. 01869_ T-07 Excavator destroyed. 01903_ U-05 Engineer destroyed. 01906_ Lgt. Treads destroyed. 01954_ as-68812 destroyed. 01957_ as-41128 destroyed. Map ----- +----------------------------------------------------+ | | | | | | | | | | | | | | | | | | | | | | | | | | | | | ?????????????????????????????????????????????????? | | ?????????????????????????????????????????????????? | | ?????????????????????????????????????????????????? | | ?????????????????????????????????????????????????? | | ?????????????????????????????????????????????????? | | ?????????????????????????????????????????????##### | | ?????????????????????????????????????????????# | | ????????????????????????????????????????###### ### | | ????????????????????????????????????????# #?? | | ????????????????????????????????????????# ######?? | | ???????????????????###################### #??????? | | ???????????????????# a% @ #??????? | | ???????????######### #################### #??????? | | ??????????## #??????????????????# #??????? | | ??????????# #### #??????????????????# ??????? | | ?????????## #??# #?????????????????? ?????? | | ????????## ##??# #?????????????????? ????? | | ????????# ##???#!#?????????????????? ????? | | ????????# ##????#|#?????????????????? ? ???? | | ????????## ##?????#%#??????????????????# ? ??? | | ?????????####??????#!#??????????????????? ? ##?? | | ???????????????????#*#??????????????????? ?##??? | | ?????????????????### #??????????????????? ?????? | | ???????????##???##"%=##?????????????????? ?????? | | ??? ### #"####= #?????????????????? ?????? | | ??? # * #??????????????????###?????? | | ??? #=% #??????????????????????????? | | ?????? ### # ! ##??????????????????????????? | | ?????????## #"#######???????????????????????????? | | ??????????## # #??????????????????????????? | | ???????????### #??????????????????????????? | | ?????????????## ##??????????????????????????? | | ??????????????# ##???????????????????????????? | | ??????????????## # #????????????????????????????? | | ???????????????### #????????????????????????????? | | ?????????????????# #????????????????????????????? | +----------------------------------------------------+ Best States ------------- Heat Dissipation 39 Energy Generation 14 Energy Capacity 250 Matter Stores 300 Matter Capacity 300 Sight Range 16 Terrain Scan Range 14 Terrain Scan Density 10 Evasion (%) 40 Recoil Reduction 2 Item Schematics ----------------- None Robot Schematics ------------------ None Fabricated ------------ Nothing Repaired ---------- Nothing Studied --------- None Alien Tech Used ----------------- None Achievements -------------- None Challenges ------------ None Game ------ Seed MetafieldRingDrillbomb Manual? 0 Play Time 00:10:58 Cumulative 97.0 hours Start 2026.09.19 @ 22:38:33 End 2026.09.19 @ 22:47:48 Sessions 1 Manual Loads 0 Difficulty Rogue Special Mode None Game No. 152 Rogue 152 Adventurer 0 Explorer 0 Win Type - Total 0 Types 0/0/0/0/0/0/0/0/0/0 Lore% 23 Gallery% 34 Achievement% 30 Wizard Run 0 Options --------- Layout 0 ASCII 0 Keyboard 0 Movement Mouse Keybinds 0 Fullscreen 1 Font 24/Smallcaps Map View 38x25 Zoom Use 100% Tactical HUD 1 Map Filters NONE Filters NONE Steam 1 RUN: b64e662c-5ef5-48cd-9c64-50fe6963a7c9